[Event "44th Chess Olympiad Women 2022"]
[Site "Chennai"]
[Date "2022.08.01"]
[Round "4.8"]
[White "Nurgali, Nazerke"]
[Black "Munkhzul, Davaakhuu"]
[Result "0-1"]
[WhiteElo "2181"]
[BlackElo "2095"]
[Annotator "NA RC"]
[PlyCount "80"]
[EventDate "2022.??.??"]
[TimeControl "60"]

1. d4 {[%emt 0:00:04]} Nf6 {[%emt 0:00:20]} 2. Nf3 {[%emt 0:00:25]} d5 {
[%emt 0:00:11]} 3. c4 {[%emt 0:00:24]} e6 {[%emt 0:00:12]} 4. g3 {[%emt 0:00:
00]} Bb4+ {[%emt 0:00:27]} 5. Bd2 {[%emt 0:00:19]} Be7 {[%emt 0:00:12]} 6. Bg2
{[%emt 0:00:28]} O-O {[%emt 0:00:12]} 7. O-O {[%emt 0:00:38]} c6 {[%emt 0:00:
00]} 8. Qc2 {[%emt 0:00:22]} Nbd7 {[%emt 0:00:12]} 9. Bf4 {[%emt 0:01:06]} b6 {
[%emt 0:00:12]} 10. Rd1 {[%emt 0:01:25]} Ba6 {[%emt 0:00:40]} 11. Ne5 {[%emt 0:
00:00]} Rc8 {[%emt 0:08:02]} 12. Nc3 {[%emt 0:01:38]} Nxe5 {[%emt 0:16:01]} 13.
dxe5 {[%emt 0:01:37]} Ng4 {[%emt 0:07:25]} 14. h3 {[%emt 0:12:05]} Nxf2 {
[%emt 0:10:06]} 15. Kxf2 {[%emt 0:00:47]} Bc5+ {[%emt 0:00:10]} 16. Ke1 {
[%emt 0:05:40]} f6 {[%emt 0:04:50]} 17. Ne4 {[%emt 0:11:01]} Bb4+ {[%emt 0:00:
00]} 18. Bd2 {[%emt 0:03:33]} Bxd2+ {[%emt 0:02:19]} 19. Rxd2 {[%emt 0:02:19]}
fxe5 {[%emt 0:05:10]} 20. Qa4 {[%emt 0:18:37]} Bb7 {[%emt 0:18:33]} 21. Qa3 {
[%emt 0:03:19]} Rc7 {[%emt 0:00:57]} 22. h4 {[%emt 0:02:34]} h6 {[%emt 0:05:00]
} 23. Bh3 {[%emt 0:01:55]} Qe8 {[%emt 0:01:43]} 24. Nd6 {[%emt 0:05:58]} Qg6 {
[%emt 0:00:07]} 25. Nxb7 {[%emt 0:02:47]} Rxb7 {[%emt 0:00:03]} 26. Qe3 {
[%emt 0:03:35]} Rbf7 {[%emt 0:05:54]} 27. Rdd1 {[%emt 0:03:26]} e4 {[%emt 0:00:
00]} 28. Kd2 {[%emt 0:06:08]} c5 {[%emt 0:00:46]} 29. h5 {[%emt 0:00:18]} Qf6 {
[%emt 0:00:40]} 30. Kc2 {[%emt 0:00:37]} Qe5 {[%emt 0:00:47]} 31. Rf1 {[%emt 0:
00:00]} d4 {[%emt 0:00:12]} 32. Qg1 {[%emt 0:00:50]} d3+ {[%emt 0:01:05]} 33.
exd3 {[%emt 0:01:08]} exd3+ {[%emt 0:00:09]} 34. Kb3 {[%emt 0:00:03]} d2 {
[%emt 0:02:11]} 35. Bg4 {[%emt 0:03:45]} Qe4 {[%emt 0:00:44]} 36. Bxe6 {
[%emt 0:01:09]} Qxe6 {[%emt 0:00:36]} 37. Rxf7 {[%emt 0:00:36]} Rxf7 {[%emt 0:
00:00]} 38. Qg2 {[%emt 0:00:12]} Qe3+ {[%emt 0:01:08]} 39. Kc2 {[%emt 0:00:42]}
d1=Q+ {[%emt 0:00:12]} 40. Kxd1 {[%emt 0:00:18]} Rd7+ {[%emt 0:00:07]} 0-1

[Event "44th Chess Olympiad Women 2022"]
[Site "Chennai"]
[Date "2022.08.01"]
[Round "4.9"]
[White "Blokhin, Sofia"]
[Black "Divya Deshmukh"]
[Result "1/2-1/2"]
[WhiteElo "1996"]
[BlackElo "2319"]
[Annotator "TA"]
[PlyCount "84"]
[EventDate "2022.??.??"]
[TimeControl "60"]

{[%evp 22,84,-19,-23,-6,-6,-6,-2,5,-6,-12,-15,0,-7,8,0,0,0,0,-14,-17,-10,-16,
-16,0,0,0,-74,-74,-101,-18,-20,0,0,0,0,0,0,0,0,0,0,0,0,0,0,0,0,0,0,0,0,0,0,0,0,
0,0,0,0,0,0,9,9,11]} 1. e4 {[%emt 0:00:03]} c5 {[%emt 0:00:06]} 2. Nf3 {
[%emt 0:00:06]} d6 {[%emt 0:00:09]} 3. d4 {[%emt 0:00:08]} cxd4 {[%emt 0:00:05]
} 4. Nxd4 {[%emt 0:00:04]} Nf6 {[%emt 0:00:04]} 5. Nc3 {[%emt 0:00:08]} Nc6 {
[%emt 0:00:09][%cal Yb8c6,Yc6b4,Yb4d5]} 6. Be2 {[%emt 0:00:17]} e5 {[%emt 0:00:
07]} 7. Nb3 {[%emt 0:00:07]} Be7 {[%emt 0:00:12]} 8. O-O {[%emt 0:00:00]} O-O {
[%emt 0:00:08]} 9. f4 {[%emt 0:00:36]} a5 {[%emt 0:02:09]} 10. a4 {[%emt 0:00:
47]} Nb4 {[%emt 0:01:48]} 11. Be3 {[%emt 0:02:57]} Be6 {[%emt 0:00:00]} 12. f5
{[%emt 0:15:22]} Bxb3 {[%emt 0:09:17] B59: Classical Sicilian: 6 Be2 e5 7 Nb3.}
13. cxb3 {[%emt 0:00:06]} d5 {[%emt 0:00:53] Inhibits Bc4.} 14. exd5 {[%emt 0:
00:53]} Nfxd5 {[%emt 0:06:57]} 15. Nxd5 {[%emt 0:09:55]} Nxd5 {[%emt 0:08:02]}
16. Bf2 {[%emt 0:02:34]} e4 {[%emt 0:23:09] [#]} 17. Kh1 $146 {[%emt 0:18:18]}
({Predecessor:} 17. Bc4 e3 18. Qxd5 exf2+ 19. Kxf2 Qb6+ 20. Kf3 Rad8 21. Qe4
Bg5 22. Rad1 Rde8 23. Qd4 Qc6+ 24. Qd5 Qb6 25. Qd4 Qc6+ 26. Qd5 Qb6 27. Qd4
Qc6+ {½-½ (27) Sokolov,A (2497)-Renet,O (2477) Switzerland 2019}) 17... Nb4 {
[%emt 0:06:47]} 18. Bc4 {[%emt 0:06:16]} Nd3 {[%emt 0:10:34]} 19. Qe2 {[%emt 0:
04:45]} Nxf2+ {[%emt 0:03:49]} 20. Qxf2 {[%emt 0:00:18]} Bg5 {[%emt 0:01:12]}
21. Qe2 {[%emt 0:04:27]} e3 {[%emt 0:03:12]} 22. f6 {[%emt 0:00:00]} g6 {
[%emt 0:04:58]} ({But not} 22... gxf6 23. Qg4 Kh8 24. h4 $14) 23. Rad1 {
[%emt 0:01:29]} Qb6 {[%emt 0:00:25]} 24. Qf3 {[%emt 0:01:09]} (24. Rd5 $11 Bxf6
25. Rb5) 24... Rad8 $17 {[%emt 0:00:47]} 25. Rde1 {[%emt 0:07:07]} Rd2 {
[%emt 0:05:29]} (25... Rfe8 $17 26. Qh3 h6) 26. Qg3 $1 $11 {[%emt 0:02:39] The
position is equal.} Qc5 {[%emt 0:01:27]} 27. Rc1 $1 $36 {[%emt 0:02:07][%cal
Yc4f7] [#] aiming for Bxf7+! White fights for an advantage.} Kh8 {[%emt 0:04:
26]} 28. Bb5 $1 {[%emt 0:03:52]} ({Don't blunder} 28. Bxf7 $2 e2 29. Bc4 exf1=N
$19) 28... Qd5 {[%emt 0:00:48][%cal Yg5h4] Hoping for ...Bh4!} 29. Bc4 {
[%emt 0:00:31]} Qc5 {[%emt 0:00:06]} 30. Bb5 $1 {[%emt 0:00:06]} ({Don't go for
} 30. Bxf7 $2 e2 31. Bc4 exf1=N $19) 30... Qd5 {[%emt 0:04:23][%cal Yg5h4] [#]
...Bh4! is the strong threat.} 31. Bc4 {[%emt 0:00:08]} Bh4 {[%emt 0:00:54]}
32. Bxd5 {[%emt 0:04:20]} Bxg3 {[%emt 0:00:01]} 33. hxg3 {[%emt 0:00:36]} Rxd5
{[%emt 0:00:07] Endgame KRR-KRR} 34. Rfe1 {[%emt 0:01:11]} Rd6 {[%emt 0:01:58]}
35. Rxe3 {[%emt 0:00:22][%cal Yb3b4]} Rxf6 {[%emt 0:00:04]} 36. Rc7 {[%emt 0:
01:14]} b6 {[%emt 0:00:05]} 37. Rf3 {[%emt 0:00:00]} Rxf3 {[%emt 0:01:31]} 38.
gxf3 {[%emt 0:00:05]} Rd8 {[%emt 0:00:19]} 39. Rc6 {[%emt 0:00:40]} Rb8 {
[%emt 0:00:50]} 40. b4 {[%emt 0:01:33]} axb4 {[%emt 0:00:31]} 41. Rc4 {[%emt 0:
30:08]} Rd8 {[%emt 0:07:26]} 42. Rxb4 {[%emt 0:00:00]} Rd6 {[%emt 0:01:52]
Weighted Error Value: White=0.06 (flawless) /Black=0.09 (flawless)} 1/2-1/2

[Event "44th Chess Olympiad Women 2022"]
[Site "Chennai"]
[Date "2022.08.01"]
[Round "4.9"]
[White "Olde, Margareth"]
[Black "Padmini, Rout"]
[Result "1/2-1/2"]
[WhiteElo "2235"]
[BlackElo "2374"]
[Annotator "TA"]
[PlyCount "89"]
[EventDate "2022.??.??"]
[TimeControl "60"]

{[%evp 24,89,91,91,106,104,110,110,118,118,142,138,147,147,154,145,148,131,131,
131,160,130,137,136,155,136,142,119,119,97,138,126,126,109,121,89,126,101,102,
111,131,111,130,75,114,0,127,112,121,120,136,0,130,130,131,102,135,0,117,117,
110,108,132,101,127,0,141,0]} 1. d4 {[%emt 0:00:02]} Nf6 {[%emt 0:00:10]} 2. c4
{[%emt 0:00:09]} g6 {[%emt 0:00:09]} 3. Nc3 {[%emt 0:00:14]} Bg7 {[%emt 0:00:
00]} 4. e4 {[%emt 0:00:45]} d6 {[%emt 0:00:10]} 5. Be3 {[%emt 0:00:29]} O-O {
[%emt 0:00:08]} 6. Be2 {[%emt 0:00:17]} e5 {[%emt 0:01:57]} 7. d5 {[%emt 0:00:
00]} Na6 {[%emt 0:00:33]} 8. g4 {[%emt 0:02:30][%cal Yg2g4,Yg4g5]} Nc5 {
[%emt 0:00:41]} 9. f3 {[%emt 0:00:26]} a5 {[%emt 0:02:21]} 10. h4 {[%emt 0:00:
00]} h5 {[%emt 0:01:40]} 11. g5 {[%emt 0:00:09]} Nh7 {[%emt 0:00:12]} 12. Nh3 {
[%emt 0:11:43]} f6 {[%emt 0:08:46]} 13. Qd2 {[%emt 0:02:42]} Bxh3 {[%emt 0:00:
00] E73: King's Indian: Averbakh Variation without 6...c5.} 14. Rxh3 {[%emt 0:
00:00]} fxg5 {[%emt 0:00:05]} 15. hxg5 {[%emt 0:00:20]} Rf4 {[%emt 0:23:24]
White is better.} 16. Rg3 {[%emt 0:00:30]} (16. Bxf4 $6 exf4 17. O-O-O (17.
Qxf4 Be5 $11) 17... Nxg5 $14) 16... b6 {[%emt 0:02:22] [#]} 17. O-O-O $146 {
[%emt 0:01:26]} ({Predecessor:} 17. Bxf4 exf4 18. Rg2 a4 19. Rc1 Be5 20. Nb5
Nxg5 21. Kd1 Kh7 22. Kc2 Nf7 23. Rcg1 {0-1 (38) Hjartarson,J (2483)-Risteski,E
(2315) Terme Catez 2021}) 17... Qe7 {[%emt 0:00:49]} 18. Rdg1 {[%emt 0:05:26]}
(18. Bxf4 exf4 19. Rgg1 (19. Qxf4 Be5 $14) 19... Nxg5 $16) 18... Raf8 {[%emt 0:
00:00]} 19. Nd1 {[%emt 0:08:22]} Qd7 {[%emt 0:10:58]} 20. Nf2 {[%emt 0:06:05]}
R4f7 {[%emt 0:02:27]} 21. Kb1 {[%emt 0:05:23]} Rf4 {[%emt 0:01:07]} 22. Qd1 {
[%emt 0:04:07]} Qf7 {[%emt 0:04:43]} 23. R3g2 {[%emt 0:19:16]} Qd7 {[%emt 0:00:
00]} ({Not} 23... Rh4 24. Qe1 $16) 24. Rh2 {[%emt 0:02:21]} Qe7 {[%emt 0:01:36]
} ({Weaker is} 24... R4f7 25. Nd3 $14) 25. Nh3 {[%emt 0:01:52]} R4f7 {[%emt 0:
00:00]} 26. Rg3 {[%emt 0:04:12]} Rf4 {[%emt 0:01:49]} 27. Rgg2 {[%emt 0:03:08]}
({Don't blunder} 27. Nxf4 $2 exf4 28. Bxf4 Rxf4 $19) 27... R4f7 {[%emt 0:00:29]
} 28. Rh1 {[%emt 0:01:37]} Qd7 {[%emt 0:00:31]} 29. Ka1 {[%emt 0:03:26]} Qe7 {
[%emt 0:02:07]} 30. Qe1 {[%emt 0:04:44]} Qd7 {[%emt 0:00:39]} 31. Kb1 {[%emt 0:
00:00]} Qe7 {[%emt 0:00:27]} 32. Rhh2 {[%emt 0:05:09]} Qd7 {[%emt 0:01:01]} 33.
Ng1 {[%emt 0:01:57]} (33. Nf2 $142) 33... Rf4 {[%emt 0:00:32]} 34. Nh3 {
[%emt 0:00:42]} R4f7 {[%emt 0:00:14]} 35. Rg1 {[%emt 0:00:46]} Qe7 {[%emt 0:00:
00]} 36. Nf2 {[%emt 0:01:01]} Rf4 {[%emt 0:00:45]} 37. Nh3 {[%emt 0:00:19]}
R4f7 {[%emt 0:00:10]} 38. Rhh1 {[%emt 0:01:34]} Qd7 {[%emt 0:00:29]} 39. Qd1 {
[%emt 0:00:45]} Qe7 {[%emt 0:02:00]} 40. Rg2 {[%emt 0:01:39]} Qd7 {[%emt 0:00:
00]} 41. Rg3 {[%emt 0:06:22]} Qe7 {[%emt 0:00:42]} 42. Qe1 {[%emt 0:07:51]} Qd7
{[%emt 0:00:42]} 43. Ng1 {[%emt 0:09:37]} Qe7 {[%emt 0:00:42]} 44. Nh3 {
[%emt 0:07:42]} Qd7 $1 {[%emt 0:00:53]} 45. Qd1 {[%emt 0:00:17] Black escapes
into a draw. Weighted Error Value: White=0.27 (precise) /Black=0.12 (very
precise)} (45. Nf2 $16) 1/2-1/2

[Event "44th Chess Olympiad Women 2022"]
[Site "Chennai"]
[Date "2022.08.01"]
[Round "4.9"]
[White "Soumya, Swaminathan"]
[Black "Sinitsina, Anastassia"]
[Result "1/2-1/2"]
[WhiteElo "2335"]
[BlackElo "2175"]
[Annotator "TA"]
[PlyCount "85"]
[EventDate "2022.??.??"]
[TimeControl "60"]

{[%evp 23,85,0,12,0,0,0,0,0,0,0,0,0,0,0,0,0,0,0,0,0,0,-8,-1,-5,0,0,0,-18,-31,
-28,-14,-21,-10,-16,-14,-11,0,-20,-17,-27,-8,-15,-13,-16,0,0,0,-14,-8,0,0,-22,
0,0,0,0,0,0,0,0,0,0,0,0]} 1. e4 {[%emt 0:00:06]} e5 {[%emt 0:00:10]} 2. Nf3 {
[%emt 0:00:03]} Nc6 {[%emt 0:00:07]} 3. Bb5 {[%emt 0:00:04]} a6 {[%emt 0:00:08]
} 4. Ba4 {[%emt 0:00:02]} Nf6 {[%emt 0:00:06]} 5. O-O {[%emt 0:00:05]} Nxe4 {
[%emt 0:00:06]} 6. d4 {[%emt 0:00:13]} b5 {[%emt 0:00:06]} 7. Bb3 {[%emt 0:00:
00]} d5 {[%emt 0:00:05]} 8. dxe5 {[%emt 0:00:05]} Be6 {[%emt 0:00:03]} 9. c3 {
[%emt 0:00:07]} Bc5 {[%emt 0:00:17]} 10. Nbd2 {[%emt 0:00:44]} O-O {[%emt 0:00:
00]} 11. Bc2 {[%emt 0:00:09]} Nxf2 {[%emt 0:00:29]} 12. Rxf2 {[%emt 0:00:04]}
f6 {[%emt 0:00:10] [#]} 13. Nf1 $1 {[%emt 0:00:07] Be3 is the strong threat.
now scores much better than the old 13.exf6. C82: Open Ruy Lopez: 9 c3 without
9...Be7.} Bxf2+ {[%emt 0:00:08]} 14. Kxf2 {[%emt 0:00:04]} fxe5 {[%emt 0:00:07]
} 15. Kg1 {[%emt 0:00:04][%cal Yc2h7]} Qd6 {[%emt 0:03:08]} 16. Be3 {[%emt 0:
01:48][%cal Yc1e3,Ye3f2,Yf2g3]} Rad8 {[%emt 0:04:39]} 17. Qe1 {[%emt 0:14:50]}
Bf5 {[%emt 0:00:43]} 18. Bxf5 {[%emt 0:08:50]} Rxf5 {[%emt 0:00:04]} 19. Rd1 {
[%emt 0:12:45]} h6 {[%emt 0:07:10]} 20. Bf2 {[%emt 0:00:00] [#]} Rff8 $146 {
[%emt 0:07:59]} ({Predecessor:} 20... Rf7 21. Bg3 Qc5+ 22. Bf2 Qd6 23. Qe2 Rdf8
24. Bg3 Qc5+ 25. Bf2 Qd6 26. Bg3 Qc5+ 27. Bf2 {½-½ (27) Caruana,F (2792)-Van
Foreest,J (2702) Wijk aan Zee 2022}) 21. Bg3 {[%emt 0:14:02]} Rfe8 {[%emt 0:02:
21]} 22. Qe2 {[%emt 0:09:13]} Qc5+ {[%emt 0:00:00]} 23. Qf2 {[%emt 0:05:04]}
Qxf2+ {[%emt 0:08:07]} 24. Kxf2 {[%emt 0:00:00]} d4 {[%emt 0:07:48] White must
now prevent ...dxc3.} 25. cxd4 {[%emt 0:00:00]} e4 {[%emt 0:00:49]} 26. Rc1 {
[%emt 0:05:27]} Nb4 {[%emt 0:04:09] Black has compensation.} 27. Ne1 {[%emt 0:
00:10]} ({Wrong is} 27. Ne5 $2 {[#]} Rxe5 $1 28. Bxe5 Nd3+ 29. Ke3 Nxc1 $19)
27... Rxd4 {[%emt 0:00:00]} 28. Rxc7 {[%emt 0:01:50]} Nxa2 {[%emt 0:05:33]
Black wants to play ... Rd1.} 29. Nc2 {[%emt 0:06:11]} Rd3 {[%emt 0:02:25]} 30.
Nfe3 {[%emt 0:01:10]} Rf8+ {[%emt 0:02:22]} 31. Ke1 {[%emt 0:00:03]} ({Much
weaker is} 31. Kg1 Rf7 $17) 31... Rf7 {[%emt 0:03:15]} 32. Rc8+ {[%emt 0:00:20]
The position is equal.} Kh7 {[%emt 0:00:14]} 33. Re8 {[%emt 0:00:31]} Rb3 {
[%emt 0:00:50]} 34. Nd1 {[%emt 0:01:20]} Nc1 {[%emt 0:06:42]} 35. Kd2 {[%emt 0:
01:56]} Nd3 {[%emt 0:00:00]} 36. Nd4 {[%emt 0:00:18]} Rb4 {[%emt 0:00:22]} 37.
Ne6 {[%emt 0:03:49]} Nxb2 {[%emt 0:09:56]} 38. Kc3 {[%emt 0:00:52][%csl Yb2,
Yb4] Really sharp!} Nd3 {[%emt 0:00:27]} 39. Nf8+ {[%emt 0:00:07] Pair of
Knights!} Kg8 {[%emt 0:00:00] Hoping for ...Rc4+.} 40. Ng6+ {[%emt 0:00:19]}
Kh7 {[%emt 0:00:05]} 41. Nf8+ {[%emt 0:30:23]} Kg8 {[%emt 0:30:41] Strongly
threatening ...Rc4+.} 42. Ng6+ {[%emt 0:00:22]} Kh7 {[%emt 0:00:07]} 43. Nf8+ {
[%emt 0:00:12] A balanced but interesting game. Weighted Error Value: White=0.
04 (flawless) /Black=0.03 (flawless)} 1/2-1/2

[Event "44th Chess Olympiad Women 2022"]
[Site "Chennai"]
[Date "2022.08.01"]
[Round "4.9"]
[White "Vantika Agrawal"]
[Black "Narva, Mai"]
[Result "1-0"]
[WhiteElo "2371"]
[BlackElo "2385"]
[Annotator "TA"]
[PlyCount "85"]
[EventDate "2022.??.??"]
[TimeControl "60"]

{[%evp 12,85,53,46,67,70,80,80,64,12,20,14,22,18,17,22,126,121,119,59,45,27,47,
12,85,93,121,86,85,85,269,277,255,251,368,354,672,678,727,726,710,672,813,613,
592,589,587,565,581,569,508,670,658,647,800,797,1195,1175,975,688,814,820,821,
786,1133,800,780,777,5197,954,887,879,847,844,1060,1000]} 1. d4 {[%emt 0:00:20]
} Nf6 {[%emt 0:00:15]} 2. c4 {[%emt 0:00:34]} e6 {[%emt 0:00:15]} 3. Nf3 {
[%emt 0:00:10]} c5 {[%emt 0:00:48]} 4. d5 {[%emt 0:00:13]} b5 {[%emt 0:00:29]}
5. dxe6 {[%emt 0:00:20]} fxe6 {[%emt 0:00:34]} 6. cxb5 {[%emt 0:00:20]} d5 {
[%emt 0:00:31]} 7. Nc3 {[%emt 0:00:22][%cal Ye2e4]} Nbd7 {[%emt 0:04:26] E10:
Blumenfeld Gambit.} 8. e4 {[%emt 0:00:52][%cal Re4d5]} d4 {[%emt 0:01:02]
Deflection} 9. Nb1 {[%emt 0:04:39] White is more active.} Bb7 {[%emt 0:00:00]
[%cal Yc8b7,Yb7e4,Ye4f5] [#] White is better.} 10. Nbd2 $146 {[%emt 0:36:01]} (
10. Bd3 $14) ({Predecessor:} 10. Bd3 Bxe4 11. Bxe4 Nxe4 12. Qb3 Qf6 13. O-O Qf5
14. Nbd2 Nxd2 15. Bxd2 Be7 16. Rfe1 {½-½ (50) Loinjak,S (2483)-Bauer,R (2459)
ICCF email 2011}) 10... Nxe4 $11 {[%emt 0:09:26]} ({Much less strong is} 10...
Bxe4 11. Nxe4 Nxe4 12. Bd3 $16) 11. Nxe4 {[%emt 0:00:00]} Bxe4 {[%emt 0:00:13]}
12. Bc4 {[%emt 0:01:51] 0-0 is the strong threat.} Qf6 $1 {[%emt 0:48:21]} 13.
O-O $1 {[%emt 0:05:55] Hoping for Ng5.} Bd6 {[%emt 0:10:41] [#]} (13... Bxf3
$11 14. Qxf3 Qxf3 15. gxf3 e5) 14. Ng5 $1 $16 {[%emt 0:07:01]} Bf5 {[%emt 0:03:
01] [#]} (14... Qh6 $2 15. g3 Qg6 16. Nxe4 $18) 15. Qh5+ {[%emt 0:08:19]} (15.
Qb3 $1 $16) 15... g6 $14 {[%emt 0:03:36]} 16. Qf3 {[%emt 0:07:35]} O-O {
[%emt 0:01:27]} 17. g4 {[%emt 0:02:19][%cal Yg2g4,Yg4f5,Yf5g6]} (17. Qb7 $5 {
[%cal Rb7d7]} Qe7 18. Re1 $11) 17... Ne5 {[%emt 0:06:15] [#]} (17... h6 $11 {
remains equal.} 18. gxf5 hxg5) 18. Qh3 $1 $16 {[%emt 0:02:31][%csl Gg5][%cal
Rh3h7]} h5 {[%emt 0:00:36]} 19. gxf5 {[%emt 0:00:56]} Nxc4 {[%emt 0:00:17]} 20.
b3 $36 {[%emt 0:00:57] Keeping Black busy.} Ne5 {[%emt 0:00:43] Black cannot
hold the game after this.} (20... Ne3 $16 {keeps fighting.} 21. Bxe3 dxe3) 21.
Ne4 $18 {[%emt 0:00:58]} Qe7 {[%emt 0:00:28]} 22. Bg5 {[%emt 0:02:33]} Qc7 {
[%emt 0:00:32]} (22... Qb7 {was called for.} 23. Qg2 (23. Nxd6 Nf3+ 24. Kg2
Ne1+ 25. Kg1 Nf3+ 26. Kg2 Ne1+ 27. Kg1 Nf3+ $11) 23... Qd5) 23. f4 {[%emt 0:02:
08]} Ng4 {[%emt 0:00:31]} (23... Rxf5 24. fxe5 Bxe5) 24. fxg6 {[%emt 0:00:25]
White is clearly winning.} Bxf4 {[%emt 0:00:29]} 25. Qxh5 {[%emt 0:00:38]} Bxg5
{[%emt 0:00:24]} 26. Nxg5 {[%emt 0:00:40]} ({Not} 26. Qxg4 Bf4 $18) 26... Nf6 {
[%emt 0:00:35]} 27. Qh6 {[%emt 0:01:27]} Qg7 {[%emt 0:00:34]} 28. Qxg7+ {
[%emt 0:00:17]} Kxg7 {[%emt 0:00:00]} 29. Nxe6+ {[%emt 0:00:02]} Kxg6 {[%emt 0:
00:08]} 30. Nxf8+ {[%emt 0:00:00]} Rxf8 {[%emt 0:00:06] Endgame KRR-KRN} 31.
Rae1 {[%emt 0:00:39]} Rg8 {[%emt 0:01:41]} 32. Kh1 {[%emt 0:00:25]} Kf7 {
[%emt 0:00:06]} 33. Re5 {[%emt 0:00:23] Prevents Rg5.} Rg6 {[%emt 0:00:27]} 34.
Rxc5 {[%emt 0:00:13]} Ke7 {[%emt 0:00:11]} 35. Rc4 {[%emt 0:00:47]} Rg4 {
[%emt 0:00:36]} 36. Rc7+ {[%emt 0:00:13]} Nd7 {[%emt 0:00:07]} 37. Rxa7 {
[%emt 0:00:23] aiming for Rg1.} Kd6 {[%emt 0:00:23]} 38. b6 {[%emt 0:01:09]} d3
{[%emt 0:00:36]} 39. b7 {[%emt 0:01:39] Strongly threatening Ra4.} Kc6 {
[%emt 0:00:23]} 40. Rd1 {[%emt 0:00:27]} Rd4 {[%emt 0:00:40]} 41. Ra4 {[%emt 0:
04:51]} Rd5 {[%emt 0:00:00]} 42. Rb4 {[%emt 0:01:38]} Kc7 {[%emt 0:00:25]} 43.
Rc1+ {[%emt 0:00:13] Weighted Error Value: White=0.25 (precise) /Black=0.49}
1-0

[Event "44th Chess Olympiad Women 2022"]
[Site "Chennai"]
[Date "2022.08.01"]
[Round "4.10"]
[White "Agrest, Inna"]
[Black "Miranda Llanes, Yerisbel"]
[Result "1-0"]
[WhiteElo "2217"]
[BlackElo "2347"]
[Annotator "TA"]
[PlyCount "87"]
[EventDate "2022.??.??"]
[TimeControl "60"]

{[%evp 9,87,-24,2,-29,14,0,14,-16,-3,-14,-22,-296,-297,-352,-314,-463,-112,
-219,-219,-254,-227,-281,-264,-252,-218,-204,-197,-197,-146,-177,-178,-173,
-140,-125,-115,-127,-110,-112,-22,-33,-14,-16,-16,-16,-14,-24,-36,-45,-24,-75,
-44,-64,0,-15,-5,-5,240,257,249,221,223,187,505,501,459,435,507,400,647,640,
578,541,1172,1160,839,640,1056,1042,12837,926]} 1. e4 {[%emt 0:00:03][%cal
Ye2e4,Ye4e5]} c6 {[%emt 0:00:27]} 2. d4 {[%emt 0:01:54]} d5 {[%emt 0:00:00]} 3.
e5 {[%emt 0:03:02]} Bf5 {[%emt 0:00:13]} 4. g4 {[%emt 0:00:42]} Be4 {[%emt 0:
00:52]} 5. f3 {[%emt 0:01:25]} Bg6 {[%emt 0:00:02]} 6. e6 {[%emt 0:00:00] B12:
Caro-Kann: Advance Variation.} Qd6 {[%emt 0:02:37]} 7. exf7+ {[%emt 0:00:00]}
Bxf7 {[%emt 0:00:11]} 8. Nh3 {[%emt 0:00:55] The position is equal. 8. Nc3 is
a critical line.} Nd7 {[%emt 0:04:22]} 9. Bf4 {[%emt 0:11:02]} Qb4+ {[%emt 0:
04:30] [#]} 10. c3 $146 {[%emt 0:07:39]} (10. Nc3 $11 {and White has nothing
to worry.}) ({Predecessor:} 10. Nc3 e5 11. dxe5 Qxb2 12. Ne2 Nxe5 13. Rb1 Nxf3+
14. Kf2 Bc5+ 15. Kxf3 Qxa2 16. Be5 {1-0 (31) Tuncer,T (2291)-Jacobsen,M (2219)
Rymanow Zdroj 2017}) 10... Qxb2 $19 {[%emt 0:01:44]} 11. Bd3 {[%emt 0:03:42]
[%cal Yd1b3]} e5 {[%emt 0:17:03]} 12. Bc1 {[%emt 0:00:00]} (12. Bxe5 $142 Nxe5
13. dxe5 Qxa1 14. Qb3) 12... Qb6 $2 {[%emt 0:03:56]} (12... Qxa1 $19 13. Qb3
exd4) 13. dxe5 {[%emt 0:07:37]} (13. Ng5 $17) 13... Nxe5 {[%emt 0:14:29]} 14.
Bf5 {[%emt 0:08:37]} g6 {[%emt 0:07:37]} 15. Qe2 {[%emt 0:00:00]} Bg7 {[%emt 0:
01:05]} 16. Be3 {[%emt 0:05:12] Prevents d4.} Qa6 {[%emt 0:02:50]} 17. Bc2 {
[%emt 0:09:53]} Qxe2+ {[%emt 0:00:57]} 18. Kxe2 {[%emt 0:00:01]} Ne7 {[%emt 0:
02:41]} (18... Nf6 $19 19. Nd2 O-O) 19. Nd2 {[%emt 0:00:27]} O-O {[%emt 0:01:
53]} 20. Ng5 {[%emt 0:02:17]} Nc8 {[%emt 0:00:00]} 21. h4 {[%emt 0:02:00]} Nd6
{[%emt 0:01:25]} 22. h5 {[%emt 0:01:49][%cal Yg5h7]} Rfe8 {[%emt 0:09:00]} 23.
Kf2 {[%emt 0:01:01][%cal Yg5h7]} Ndc4 {[%emt 0:05:24]} (23... Nb5 $17 {
Threatens to win with ...Na3.} 24. Nxf7 Kxf7) 24. Nxc4 $1 $11 {[%emt 0:00:07]}
dxc4 {[%emt 0:00:49]} 25. Nxf7 {[%emt 0:03:10]} Kxf7 {[%emt 0:01:44]} 26. Rad1
{[%emt 0:01:21] Prevents Nd3+.} Rad8 {[%emt 0:00:00]} 27. Rxd8 {[%emt 0:02:27]}
Rxd8 {[%emt 0:00:02]} 28. Be4 {[%emt 0:02:05]} Re8 {[%emt 0:02:59][%cal Ye5g4]
[#] aiming for ...Nxg4+!} 29. Kg3 {[%emt 0:00:00]} (29. hxg6+ $11 {remains
equal.} hxg6 30. Kg3) 29... Nd7 {[%emt 0:01:03]} 30. g5 {[%emt 0:01:35]
Prevents Nf6.} Be5+ {[%emt 0:01:02]} ({But not} 30... Bxc3 31. hxg6+ hxg6 32.
Rh7+ Bg7 33. Bd4 $11) ({Black should play} 30... Nb6 $15) 31. Kf2 {[%emt 0:00:
56]} Kg7 {[%emt 0:02:37]} 32. Rb1 {[%emt 0:00:53]} b6 {[%emt 0:01:37]} (32...
Nb6 $1 $11 {and Black is okay.}) 33. Bxc6 $18 {[%emt 0:00:00]} Re7 {[%emt 0:00:
25]} 34. f4 {[%emt 0:00:37]} Bxc3 {[%emt 0:00:27]} 35. Rc1 {[%emt 0:00:30]} Nb8
$2 {[%emt 0:01:50]} (35... Bb4 {is a better chance.}) 36. h6+ {[%emt 0:01:07]}
({Less strong is} 36. Rxc3 Nxc6 37. Rxc4 Re6 $11) 36... Kf8 {[%emt 0:00:15]}
37. Bb5 {[%emt 0:00:34] This bishop pair is nice.} (37. Rxc3 Nxc6 38. Rxc4 Re6
$11) 37... a6 {[%emt 0:01:02]} 38. Bxc4 {[%emt 0:00:00]} ({Not} 38. Rxc3 axb5
39. a4 bxa4 $14) 38... Ba5 {[%emt 0:00:35]} (38... Bb4 $142 39. Bb3 Nd7 40.
Rc8+ Re8) 39. Bb3 {[%emt 0:01:03][%cal Yf4f5] White is clearly winning.} Nd7 {
[%emt 0:00:35]} 40. Rc6 {[%emt 0:00:30] Against Nc5} Nc5 {[%emt 0:00:41]} 41.
Bxc5 {[%emt 0:10:17]} bxc5 {[%emt 0:00:22]} 42. Rxa6 {[%emt 0:00:20]} Be1+ {
[%emt 0:03:55]} 43. Kf3 {[%emt 0:00:34] [#] And now Ra8+ would win.} Bd2 {
[%emt 0:00:39]} 44. Rf6+ {[%emt 0:01:21] Never resign too early! Weighted
Error Value: White=0.34/Black=0.59} (44. Ra8+ $142 Re8 45. Rxe8+ Kxe8 46. Bg8)
1-0